bitfinex-derivatives/quotes_ETHF0:USTF0_20241013
["timestamp","ask_amount","ask_price","bid_price","bid_amount"]
[1728781075401,3.46817956,2478.2,2478.1,1.05963331]
[1728781075598,3.46817956,2478.2,2478.0,1.05963331]
[1728781075796,2.1164257,2478.1,2478.0,1.05963331]
[1728781076020,2.1164257,2478.1,2478.0,2.41832721]
[1728781076198,2.1164257,2478.1,2478.0,1.3586939]
[1728781076500,2.11642919,2478.1,2478.0,2.41831696]
[1728781077300,3.46817956,2478.2,2478.0,2.41831696]
[1728781077502,3.46817956,2478.2,2478.0,1.05962306]
[1728781077704,2.11643867,2478.1,2478.0,1.05962306]
[1728781078001,3.46817956,2478.2,2478.0,2.4183215]
[1728781078198,2.11645504,2478.1,2477.9,1.99289577]
[1728781078403,2.11645504,2478.1,2478.0,1.3586895]
[1728781079305,3.46817956,2478.2,2478.0,2.41832334]
[1728781079501,3.46817956,2478.2,2478.0,1.05963384]
[1728781079699,2.11647371,2478.1,2478.0,1.58927577]
[1728781079902,2.11647371,2478.1,2478.0,1.35870047]
[1728781080100,2.11647371,2478.1,2478.0,2.41834586]
[1728781080301,2.11647371,2478.1,2478.0,1.35870047]
[1728781080501,2.11647371,2478.1,2478.0,2.94797999]
[1728781081605,2.11647371,2478.1,2478.0,1.35870422]
[1728781081807,2.11648052,2478.1,2478.0,1.35870422]
[1728781082504,3.46817956,2478.2,2478.0,1.35870422]
[1728781082704,3.06459956,2478.2,2478.1,1.05969869]
[1728781082909,3.06459956,2478.2,2478.1,1.46328869]
[1728781083211,3.06459956,2478.2,2478.1,1.05969869]
[1728781084216,3.46816956,2478.2,2478.1,1.05969869]
[1728781084616,3.06459956,2478.2,2478.1,1.05969869]
[1728781086020,3.06459956,2478.2,2478.1,1.46328869]
[1728781086521,3.06459956,2478.2,2478.1,2.65708869]
[1728781087023,3.06459956,2478.2,2478.1,4.016018]
[1728781087225,3.06459956,2478.2,2478.1,2.65708869]
[1728781087520,3.06459956,2478.2,2478.1,4.01599905]
[1728781087724,3.06459956,2478.2,2478.1,2.65708869]
[1728781087912,3.06459956,2478.2,2478.1,4.01599813]
[1728781088115,3.06459956,2478.2,2478.1,2.65708869]
[1728781088721,3.06459956,2478.2,2478.1,5.17599129]
[1728781089027,0.4191,2478.2,2478.1,5.70556837]
[1728781089222,2.1170068,2478.2,2478.1,5.70556837]
[1728781090418,3.06529956,2478.3,2478.1,10.82250731]
[1728781090419,2.1170068,2478.3,2478.1,10.82250731]
[1728781090624,5.85329956,2478.5,2478.2,3.903435]
[1728781090625,2.1170068,2478.4,2478.2,3.903435]
[1728781090825,6.25682956,2478.5,2478.3,1.05930437]
[1728781091127,6.67792956,2478.5,2478.3,1.05930437]
[1728781091629,2.11632485,2478.4,2478.3,1.05930437]
[1728781094624,2.11632485,2478.4,2478.2,2.62287437]
[1728781095229,2.11632485,2478.4,2478.3,2.21930437]
[1728781095734,2.11632485,2478.4,2478.3,2.62286437]
[1728781096724,2.11632485,2478.5,2478.3,2.21930437]
[1728781097118,2.11632485,2478.5,2478.4,1.246]
[1728781100429,2.64549956,2478.5,2478.4,1.246]
[1728781103529,3.03349956,2478.5,2478.4,1.246]
[1728781103734,3.03349956,2478.5,2478.4,0.8338]
[1728781104430,0.388,2478.5,2478.4,1.23734]
[1728781104634,0.388,2478.5,2478.4,0.8338]
[1728781106936,3.03349956,2478.5,2478.4,1.9938]
[1728781107141,2.64549956,2478.6,2478.5,0.40353]
[1728781107438,2.11570475,2478.6,2478.5,1.56353]
[1728781107740,2.11570475,2478.6,2478.5,1.96723]
[1728781107939,2.11570475,2478.7,2478.5,1.96723]
[1728781108440,7.06757956,2478.8,2478.5,1.96723]
[1728781108441,6.53778475,2478.8,2478.5,1.96723]
[1728781108632,3.32998475,2478.8,2478.5,1.96723]
[1728781110633,4.48998475,2478.8,2478.5,1.96723]
[1728781112133,0.4234,2478.7,2478.5,1.56353]
[1728781115545,2.53910475,2478.7,2478.5,1.56353]
[1728781116444,2.11570475,2478.6,2478.5,1.56353]
[1728781123550,2.53910475,2478.7,2478.5,1.56353]
[1728781125149,0.4234,2478.7,2478.5,1.56353]
[1728781125343,2.53910475,2478.7,2478.5,1.56353]
[1728781132851,2.94260475,2478.7,2478.4,1.46283437]
[1728781133049,2.11570475,2478.6,2478.3,5.42710437]
[1728781133254,0.4118,2478.5,2478.4,1.05930437]
[1728781133449,0.8053,2478.5,2478.4,1.05930437]
[1728781134249,0.8053,2478.5,2478.4,1.46284437]
[1728781136753,1.9653,2478.5,2478.4,1.05930437]
[1728781136957,4.48453475,2478.5,2478.4,1.05930437]
[1728781137350,0.40354,2478.4,2478.3,1.05930437]
[1728781137547,0.82534,2478.4,2478.3,2.41682075]
[1728781137756,2.94104475,2478.4,2478.3,1.16]
[1728781140163,2.53750475,2478.4,2478.3,1.16]
[1728781141260,0.4218,2478.4,2478.3,1.16]
[1728781145767,2.5391637,2478.4,2478.3,2.21930437]
[1728781148678,2.5391637,2478.4,2478.3,3.57711158]
[1728781149080,2.5391637,2478.4,2478.3,2.21930437]
[1728781152884,2.9427037,2478.4,2478.3,1.05930437]
[1728781153073,2.5391637,2478.4,2478.3,1.05930437]
[1728781153482,2.5391637,2478.4,2478.2,2.62287437]
[1728781153676,2.9427037,2478.4,2478.2,2.62287437]
[1728781153878,2.9427037,2478.4,2478.2,2.21930437]
[1728781157080,0.394,2478.3,2478.2,2.21930437]
[1728781157389,0.394,2478.3,2478.2,3.57700011]
[1728781157782,0.394,2478.3,2478.2,2.21930437]
[1728781158585,0.394,2478.3,2478.2,3.57698376]
[1728781163482,0.394,2478.3,2478.2,3.57678209]
[1728781163981,0.394,2478.3,2478.2,3.57677439]
[1728781172198,0.394,2478.3,2478.2,3.98034439]
[1728781173098,0.394,2478.3,2478.2,3.97983602]
[1728781173291,2.1173637,2478.4,2478.3,0.40356]
[1728781173497,2.1173637,2478.4,2478.3,3.42648766]
[1728781175596,2.1173637,2478.4,2478.3,4.78422897]
[1728781177893,2.1173637,2478.4,2478.3,4.78439071]
[1728781181493,2.1173637,2478.4,2478.3,3.72566305]
[1728781181693,2.11878637,2478.4,2478.3,4.78471743]
[1728781182499,3.05409956,2478.5,2478.3,4.38115743]
[1728781182701,3.05409956,2478.5,2478.4,0.40354]
[1728781183500,3.05409956,2478.5,2478.3,3.42680438]
[1728781183695,3.05409956,2478.5,2478.3,3.04180438]
[1728781183891,0.4224,2478.4,2478.3,3.04180438]
[1728781184095,0.4224,2478.4,2478.3,3.98080387]
[1728781184398,0.4224,2478.4,2478.3,2.62260438]
[1728781184892,0.4224,2478.4,2478.3,3.98087419]
[1728781185599,0.4224,2478.4,2478.3,2.41732419]
[1728781186197,3.06789956,2478.4,2478.3,1.05905438]
[1728781186404,3.06789956,2478.4,2478.3,2.41740219]
[1728781186596,3.06789956,2478.4,2478.3,1.05905438]
[1728781188299,0.4224,2478.4,2478.3,2.41738158]
[1728781188806,3.06789956,2478.4,2478.3,1.05905438]
[1728781190202,3.06789956,2478.4,2478.3,2.41702911]
[1728781190593,3.06789956,2478.4,2478.3,1.05905438]
[1728781193003,4.22789956,2478.4,2478.3,1.05905438]
[1728781193205,1.98594,2478.4,2478.2,1.05905438]
[1728781193511,4.59106475,2478.3,2478.1,1.05905438]
[1728781193698,0.40357,2478.2,2478.1,1.05905438]
[1728781194008,3.05263475,2478.2,2478.1,1.05905438]
[1728781194201,2.64906475,2478.2,2478.1,1.05905438]
[1728781195704,4.99463475,2478.3,2478.1,1.05905438]
[1728781195905,2.64906475,2478.2,2478.1,1.05905438]
[1728781196501,2.64906475,2478.2,2478.0,2.62265438]
[1728781196706,2.11875038,2478.1,2478.0,2.62265438]
[1728781197005,2.11875038,2478.1,2478.0,3.98052712]
[1728781197410,2.11875038,2478.1,2478.0,3.57692712]
[1728781197609,2.50735038,2478.1,2478.0,3.57692712]
[1728781198002,0.3886,2478.1,2478.0,4.51044479]
[1728781198305,0.3886,2478.1,2478.0,4.10683479]
[1728781201197,0.3886,2478.1,2478.0,4.42528764]
[1728781201506,0.3886,2478.1,2478.0,4.10683479]
[1728781202008,1.5486,2478.1,2478.0,2.94683479]
[1728781202230,0.40361,2478.0,2477.9,1.05897288]
[1728781202416,0.40362,2477.9,2477.8,1.05897288]
[1728781202602,0.40362,2477.9,2477.7,1.47917288]
[1728781202603,3.68189513,2477.9,2477.7,1.47917288]
[1728781202807,0.3984,2477.8,2477.7,1.47917288]
[1728781203105,0.3984,2477.8,2477.7,2.63917288]
[1728781204508,0.3984,2477.8,2477.7,1.47917288]
[1728781205113,0.3984,2477.8,2477.7,1.88283288]
[1728781205503,0.3984,2477.8,2477.7,0.82386]
[1728781205906,1.16,2477.9,2477.7,0.82386]
[1728781206111,3.27827513,2477.9,2477.8,1.16]
[1728781206710,2.53807513,2478.0,2477.8,1.16]
[1728781206913,2.53807513,2478.0,2477.9,1.56362]
[1728781208506,2.53807513,2478.0,2477.8,1.9619]
[1728781208713,2.53807513,2478.0,2477.9,0.40362]
[1728781212008,3.69807513,2478.0,2477.9,0.40362]
[1728781212720,4.10168513,2478.0,2477.7,0.82385]
[1728781212919,1.16,2477.9,2477.7,0.4202]
[1728781213113,1.56362,2477.9,2477.7,0.4202]
[1728781213316,1.16,2477.9,2477.7,1.5802]
[1728781213512,1.16,2477.8,2477.7,0.4202]
[1728781213819,1.16,2477.8,2477.6,4.66197288]
[1728781214119,0.3911,2477.7,2477.6,4.66197288]
[1728781214414,0.3911,2477.7,2477.6,3.2078]
[1728781214621,0.79476,2477.7,2477.6,3.2078]
[1728781214817,0.3911,2477.7,2477.6,3.2078]
[1728781217115,0.3911,2477.7,2477.6,3.61147]
[1728781217315,0.3911,2477.7,2477.6,4.77147]
[1728781217518,0.3911,2477.7,2477.6,5.17667]
[1728781217720,1.21242,2478.0,2477.7,0.40365]
[1728781217919,1.5836,2477.9,2477.7,0.40365]
[1728781219923,1.5836,2477.9,2477.7,0.80515]
[1728781229423,1.98723,2477.9,2477.7,0.80515]
[1728781230441,4.10550513,2477.9,2477.7,0.80515]
[1728781232337,0.40364,2477.8,2477.7,0.4015]
[1728781232631,3.70187513,2477.9,2477.6,1.96887]
[1728781232632,4.10551513,2477.9,2477.6,1.96887]
[1728781234033,3.70187513,2477.9,2477.6,1.5652]
[1728781234242,1.16,2477.8,2477.5,1.5543]
[1728781234445,1.19066,2477.7,2477.5,1.5543]
[1728781234629,1.19066,2477.7,2477.5,1.95799]
[1728781234933,0.4098,2477.6,2477.5,1.95799]
[1728781236430,0.4098,2477.6,2477.5,3.01696288]
[1728781236833,0.4098,2477.6,2477.5,2.61327288]
[1728781237336,0.4098,2477.6,2477.5,3.01696288]
[1728781237538,0.4098,2477.6,2477.5,2.61327288]
[1728781238156,0.4098,2477.6,2477.5,3.01696288]
[1728781238544,1.97347,2477.6,2477.5,1.05897288]
[1728781238751,1.97348,2477.6,2477.4,1.05897288]
[1728781238937,1.16,2477.5,2477.3,2.62269288]
[1728781239439,1.16,2477.5,2477.3,1.56372]
[1728781240130,1.16,2477.5,2477.3,1.16]
[1728781240439,3.68196513,2477.5,2477.3,1.16]
[1728781240639,3.27827513,2477.5,2477.3,1.16]
[1728781241140,3.27827513,2477.5,2477.3,1.56372]
[1728781242136,3.27827513,2477.5,2477.3,1.16]
[1728781242137,3.68197513,2477.5,2477.3,1.16]
[1728781242337,0.3868,2477.4,2477.3,1.56372]
[1728781245945,0.3868,2477.4,2477.3,1.16]
[1728781246150,0.3868,2477.4,2477.3,1.56372]
[1728781248047,0.3868,2477.4,2477.3,1.16]
[1728781248851,0.3868,2477.4,2477.3,1.56372]
[1728781249260,0.3868,2477.4,2477.3,1.16]
[1728781250249,0.3868,2477.4,2477.3,1.56372]
[1728781250845,1.5468,2477.4,2477.3,1.56372]
[1728781252050,1.5468,2477.4,2477.3,0.40372]
[1728781254747,1.5468,2477.4,2477.2,1.56373]
[1728781254943,0.4173,2477.3,2477.2,1.16]
[1728781255150,1.5773,2477.3,2477.1,2.76945]
[1728781255756,1.9829,2477.3,2477.1,2.76945]
[1728781256342,1.9829,2477.3,2477.1,2.35465]
[1728781256550,1.56374,2477.2,2477.0,2.21897288]
[1728781256752,1.5764,2477.1,2477.0,2.21897288]
[1728781257057,1.98015,2477.1,2477.0,1.05897288]
[1728781257253,1.98015,2477.1,2476.9,5.42677288]
[1728781257550,1.5516,2477.0,2476.8,3.78917288]
[1728781257750,1.5516,2477.0,2476.8,1.44367288]
[1728781257952,1.56379,2476.9,2476.8,1.05897288]
[1728781258146,1.5498,2476.9,2476.7,8.46705131]
[1728781258352,1.5498,2476.9,2476.7,6.24807843]
[1728781258353,0.4038,2476.8,2476.7,6.24807843]
[1728781258656,1.95359,2476.9,2476.7,6.24807843]
[1728781258849,1.16,2476.8,2476.7,6.24807843]
[1728781261154,1.16,2476.8,2476.5,1.05897288]
[1728781261356,4.77164,2476.6,2476.2,1.46285288]
[1728781261657,0.82346,2476.5,2476.3,0.418]
[1728781261864,1.23606,2476.5,2476.2,1.44557288]
[1728781262062,1.23606,2476.5,2476.2,0.3866]
[1728781262257,0.40387,2476.4,2476.1,0.40391]
[1728781262461,1.16,2476.2,2476.1,0.40391]
[1728781263366,1.16,2476.2,2476.0,1.56392]
[1728781263580,1.16,2476.2,2476.0,1.98162]
[1728781263855,1.16,2476.2,2476.1,0.40392]
[1728781265258,0.4047,2476.4,2476.1,1.16]
[1728781265552,0.4047,2476.4,2476.0,0.4177]
[1728781265553,1.16,2476.4,2476.3,0.40387]
[1728781266962,1.16,2476.4,2476.3,0.80017]
[1728781270258,1.16,2476.4,2476.3,0.3963]
[1728781270459,1.16,2476.4,2476.3,0.40388]
[1728781270854,1.16,2476.4,2476.0,0.4177]
[1728781270855,1.16,2476.4,2476.2,0.40389]
[1728781271055,1.16,2476.3,2476.2,0.40389]
[1728781275157,1.16,2476.3,2476.0,3.6255]
[1728781275158,1.16,2476.3,2476.1,0.4039]
[1728781275359,0.3907,2476.2,2476.1,0.4039]
[1728781275759,1.5507,2476.2,2476.1,0.4039]
[1728781276155,0.3907,2476.2,2476.1,0.4039]
[1728781277460,1.5507,2476.2,2476.1,0.4039]
[1728781279268,1.5507,2476.2,2476.0,3.6255]
[1728781279462,1.5507,2476.2,2476.0,4.02942]
[1728781279767,1.5507,2476.2,2476.0,3.6255]
[1728781279970,1.5507,2476.2,2476.1,0.40392]
[1728781283165,1.5507,2476.2,2476.0,3.6255]
[1728781283372,1.5507,2476.2,2476.0,4.02943]
[1728781283571,1.16,2476.1,2476.0,4.02943]
[1728781283776,0.40395,2476.0,2475.6,0.40399]
[1728781284072,0.40401,2475.6,2475.4,3.06634494]
[1728781284281,5.5278,2475.7,2475.4,2.64634494]
[1728781284282,2.37721,2475.5,2475.4,2.64634494]
[1728781284973,6.0132,2475.5,2475.4,2.64634494]
[1728781285162,6.8822,2475.5,2475.4,2.64634494]
[1728781285364,7.28621,2475.5,2475.4,2.64634494]
[1728781295284,13.28621,2475.5,2475.4,2.64634494]
[1728781300485,14.0422,2475.5,2474.9,3.6021]
[1728781300791,0.40411,2474.9,2474.6,3.6297]
[1728781301093,1.16,2474.7,2474.6,4.0493]
[1728781302482,1.16,2474.7,2474.6,3.2078]
[1728781303586,1.16,2474.7,2474.5,4.45348]
[1728781303788,0.869,2474.9,2474.5,4.0493]
[1728781303989,1.16,2474.8,2474.6,0.40415]
[1728781304179,1.16,2474.8,2474.7,0.4184]
[1728781306889,1.16,2474.8,2474.5,0.8415]
[1728781307092,1.16,2474.7,2474.6,0.40415]
[1728781307789,1.16,2474.7,2474.5,0.8415]
[1728781308103,1.16,2474.6,2474.5,0.8415]
[1728781309208,2.43316,2474.6,2474.5,0.4196]
[1728781309411,2.43316,2474.6,2474.3,0.3962]
[1728781309412,0.40419,2474.4,2474.3,0.3962]
[1728781309592,1.56419,2474.4,2474.3,0.3962]
[1728781309797,6.3616,2474.4,2473.9,6.0]
[1728781310002,1.16,2474.0,2473.9,6.0]
[1728781310198,0.869,2474.1,2473.9,6.0]
[1728781310394,1.16,2474.0,2473.9,6.0]
[1728781310602,1.56426,2474.0,2473.9,6.0]
[1728781310803,3.2078,2474.2,2473.9,6.0]
[1728781311198,1.2766,2474.3,2474.0,0.406]
[1728781311199,1.27322,2474.3,2474.0,0.406]
[1728781311395,1.16,2474.1,2474.0,0.406]
[1728781315197,1.16,2474.1,2473.9,6.0]
[1728781315425,0.40426,2474.0,2473.9,6.0]
[1728781315696,1.16,2474.0,2473.9,6.0]
[1728781317297,1.56426,2474.0,2473.9,6.0]
[1728781317500,1.16,2474.0,2473.9,6.0]
[1728781319300,1.56426,2474.0,2473.9,6.0]
[1728781320712,1.98676,2474.0,2473.9,6.0]
[1728781323124,12.02916,2474.0,2473.9,6.0]
[1728781325316,2.7425,2474.0,2473.7,2.07959]
[1728781325517,5.93209,2473.8,2473.7,2.07959]
[1728781325712,6.80109,2473.8,2473.7,0.74959]
[1728781325909,10.84349,2473.8,2473.7,0.74959]
[1728781326216,11.24199,2473.8,2473.7,0.74959]
[1728781326806,17.24199,2473.8,2473.7,0.74959]
[1728781328106,17.24199,2473.8,2473.2,1.1849]
[1728781328107,1.16,2473.3,2473.2,1.1849]
[1728781329113,6.0722,2473.3,2472.6,3.2078]
[1728781329419,0.40442,2473.1,2472.7,1.2056]
[1728781329721,3.9904,2473.2,2472.7,1.2056]
[1728781329932,0.40442,2473.0,2472.7,1.2056]
[1728781330710,1.16,2472.8,2472.7,1.2056]
[1728781331216,1.16,2472.8,2472.7,0.7947]
[1728781331606,1.16,2472.8,2472.7,1.1802]
[1728781333415,2.72446,2472.8,2472.7,0.7947]
[1728781333723,3.12976,2472.8,2472.7,0.7947]
[1728781334514,2.7253,2472.8,2472.7,0.7947]
[1728781334813,0.4053,2472.8,2472.7,0.7947]
[1728781335017,1.5653,2472.8,2472.7,0.7947]
[1728781335609,1.16,2472.8,2472.7,5.24316]
[1728781335817,4.179,2473.4,2472.7,11.9987]
[1728781336015,1.16,2472.9,2472.8,1.96176]
[1728781336220,1.16,2473.4,2472.9,0.40444]
[1728781336516,3.2078,2473.5,2472.8,7.6483]
[1728781336718,1.16,2473.1,2472.9,1.16]
[1728781336936,1.16,2473.0,2472.9,0.40444]
[1728781337312,1.16,2473.0,2472.9,10.44844]
[1728781338312,1.16,2473.0,2472.9,4.44844]
[1728781338517,2.53,2473.0,2472.9,4.044]
[1728781338714,2.53,2473.0,2472.8,4.00954]
[1728781339118,2.53,2473.0,2472.8,0.3973]
[1728781339418,0.40444,2472.9,2472.7,0.7947]
[1728781339620,2.53,2472.8,2472.7,0.7947]
[1728781342128,6.5484,2473.2,2472.7,4.8387]
[1728781342423,6.5484,2473.2,2472.8,0.40444]
[1728781342616,6.5484,2473.2,2472.9,0.3938]
[1728781342815,6.5484,2473.2,2472.9,0.79824]
[1728781342816,3.3406,2473.2,2472.9,0.79824]
[1728781343023,2.53,2473.3,2472.9,3.6016]
[1728781343327,4.179,2473.6,2472.9,3.6016]
[1728781343328,2.53,2473.6,2473.4,0.40436]
[1728781343620,2.53,2473.6,2473.5,0.40434]
[1728781343826,2.53,2473.6,2473.2,3.2078]
[1728781344128,2.53,2473.6,2473.3,0.8248]
[1728781344324,2.53,2473.6,2473.5,0.40434]
[1728781344924,2.53,2473.6,2473.4,0.3857]
[1728781345128,2.53,2473.6,2473.4,0.79005]
[1728781346425,2.53,2473.6,2473.4,0.3857]
[1728781346724,2.93433,2473.6,2473.4,0.3857]
[1728781347230,2.53,2473.6,2473.4,0.3857]
[1728781348431,2.93433,2473.6,2473.4,0.3857]
[1728781348730,0.40436,2473.4,2473.3,0.8248]
[1728781348916,0.40436,2473.4,2473.0,0.81711]
[1728781349124,2.93438,2473.3,2473.0,0.4127]
[1728781349334,3.33198,2473.3,2473.0,0.4127]
[1728781350925,3.33198,2473.3,2473.0,0.81712]
[1728781351322,2.9276,2473.3,2473.0,0.81712]
[1728781351628,2.9432,2473.5,2473.1,0.4044]
[1728781351830,0.40436,2473.4,2473.1,0.4044]
[1728781352535,3.74545,2473.5,2473.1,0.4044]
[1728781354039,3.3411,2473.5,2473.2,0.40439]
[1728781354429,0.8111,2473.5,2473.0,0.4127]
[1728781354737,4.21042,2473.7,2473.4,0.40435]
[1728781354738,2.53,2473.7,2473.4,0.40435]
[1728781355133,0.8278,2473.8,2473.1,3.2078]
[1728781355321,3.2078,2473.9,2473.7,0.40429]
[1728781355521,3.2078,2473.9,2473.8,0.40429]
[1728781356239,3.2078,2473.9,2473.5,1.1985]
[1728781356430,3.2078,2473.9,2473.7,0.4043]
[1728781357325,3.2078,2473.9,2473.5,1.1985]
[1728781357529,3.2078,2473.9,2473.8,0.40429]
[1728781357730,3.2078,2473.9,2473.7,0.4043]
[1728781358122,3.2078,2473.9,2473.8,0.40429]
[1728781358832,3.2078,2473.9,2473.7,0.4043]
[1728781359232,2.53,2474.0,2473.7,0.4043]
[1728781361835,2.93426,2474.0,2473.7,0.4043]
[1728781362832,2.53,2474.0,2473.7,0.4043]
[1728781363831,2.93429,2473.8,2473.5,3.61213]
[1728781364029,2.40085019,2474.1,2473.5,3.2078]
[1728781364030,2.53,2473.6,2473.5,3.2078]
[1728781364334,2.53,2473.6,2473.3,0.40437]
[1728781364542,2.53,2473.4,2473.1,8.43177288]
[1728781364732,2.53,2473.4,2473.1,7.3728]
[1728781364932,2.93436,2473.4,2473.1,7.3728]
[1728781365227,2.53,2473.2,2472.9,1.05897288]
[1728781365442,2.53,2473.0,2472.8,1.05897288]
[1728781365668,0.7772,2472.9,2472.8,1.05897288]
[1728781365832,0.7772,2472.9,2472.7,1.05897288]
[1728781366031,0.7772,2472.9,2472.6,4.67125288]
[1728781366236,0.7772,2472.9,2472.5,1.05897288]
[1728781366447,1.18165,2472.9,2472.6,1.05897288]
[1728781366637,1.18165,2472.9,2472.5,1.46347288]
[1728781367035,0.7772,2472.9,2472.6,0.40449]
[1728781367337,0.7772,2472.9,2472.5,1.05897288]
[1728781367338,1.18164,2472.9,2472.5,1.46347288]
[1728781367536,1.18164,2472.9,2472.5,0.4045]
[1728781367939,0.7772,2472.9,2472.6,0.40449]
[1728781368240,1.18164,2472.9,2472.5,0.40449]
[1728781368743,1.18164,2472.9,2472.3,5.46977288]
[1728781368744,0.7772,2472.9,2472.3,5.46977288]
[1728781368933,1.18165,2472.9,2472.5,0.40449]
[1728781369143,0.40446,2472.8,2472.4,0.40451]
[1728781370141,1.18165,2472.9,2472.3,5.07427288]
[1728781370343,1.18165,2472.9,2472.5,0.4045]
[1728781370640,0.40446,2472.8,2472.4,0.40451]
[1728781371044,0.40446,2472.8,2472.4,1.46348288]
[1728781371436,0.40446,2472.8,2472.4,0.40451]
[1728781373255,0.7772,2472.9,2472.4,0.40451]
[1728781373256,0.40447,2472.7,2472.4,0.40451]
[1728781373447,0.7772,2472.9,2472.4,0.40451]
[1728781373645,0.40446,2472.8,2472.4,0.40451]
[1728781374141,0.40446,2472.8,2472.3,3.2078]
[1728781374142,0.40452,2472.4,2472.3,1.05774019]
[1728781374369,0.40452,2472.4,2472.1,0.66883493]
[1728781374370,4.0858,2472.4,2471.4,2.11903436]
[1728781374566,0.40465,2471.6,2471.5,1.34655413]
[1728781374847,6.14243,2471.8,2471.3,3.2078]
[1728781375045,1.57305019,2472.3,2471.1,2.94783436]
[1728781375046,3.61237,2472.1,2471.6,3.61244]
[1728781375244,0.40462,2471.9,2471.4,0.40468]
[1728781375444,3.2078,2472.1,2471.6,0.40464]
[1728781375647,3.61238,2472.1,2471.5,0.40466]
[1728781376046,3.2078,2472.1,2471.6,0.40465]
[1728781376363,3.2078,2472.1,2471.3,3.2078]
[1728781376541,3.2078,2472.1,2471.6,0.40464]
[1728781377043,3.2078,2472.1,2471.4,0.40467]
[1728781377245,3.2078,2472.1,2471.3,3.2078]
[1728781377444,0.8128,2472.0,2471.3,3.2078]
[1728781377842,0.8128,2472.0,2471.4,0.40467]
[1728781378655,3.3428,2472.0,2471.4,0.40467]
[1728781379146,3.2078,2471.8,2471.4,0.40467]
[1728781379653,3.2078,2471.8,2471.4,0.40468]
[1728781380647,3.2078,2471.8,2471.3,3.2078]
[1728781381249,3.2078,2471.8,2471.5,0.40466]
[1728781382139,3.2078,2471.8,2471.4,0.4204]
[1728781382346,3.2078,2471.8,2471.6,0.40464]
[1728781382649,3.2078,2471.8,2471.7,0.40464]
[1728781382851,3.2078,2471.8,2471.4,0.4204]
[1728781383056,3.2078,2471.8,2471.6,0.40465]
[1728781383245,3.2078,2471.8,2471.5,0.40466]
[1728781383440,3.2078,2471.8,2471.4,0.4204]
[1728781383645,3.2078,2471.8,2471.7,0.40464]
[1728781383944,0.8128,2472.0,2471.8,0.40461]
[1728781384745,0.8128,2472.0,2471.9,0.4046]
[1728781386253,0.8128,2472.0,2471.4,0.4204]
[1728781386254,3.2078,2472.1,2472.0,0.40459]
[1728781388056,3.2078,2472.4,2472.3,0.40454]
[1728781390157,3.2078,2472.4,2471.7,0.8066]
[1728781390459,3.2078,2472.4,2472.2,0.40455]
[1728781390863,3.2078,2472.4,2472.3,0.40454]
[1728781391472,4.564,2473.0,2472.7,0.40447]
[1728781391473,3.2078,2472.8,2472.7,0.40447]
[1728781392967,0.8345,2472.9,2472.7,0.40447]
[1728781394661,0.8345,2472.9,2472.8,0.40446]
[1728781394662,0.4242,2472.9,2472.8,0.40446]
[1728781399072,2.9542,2472.9,2472.7,0.40447]
[1728781399259,2.9542,2472.9,2472.8,0.40446]
[1728781399765,6.9982,2472.9,2472.8,0.40446]
[1728781400073,4.4682,2472.9,2472.8,0.40446]
[1728781400263,0.4242,2472.9,2472.8,0.40446]
[1728781401269,0.4108,2473.0,2472.9,0.40444]
[1728781401764,3.2078,2473.1,2472.7,0.3953]
[1728781401972,3.2078,2473.1,2473.0,0.40442]
[1728781404964,0.3845,2473.2,2473.1,0.40441]
[1728781411870,0.3845,2473.2,2472.8,0.421]
[1728781412076,0.3845,2473.2,2473.0,0.40441]
[1728781413479,0.3845,2473.2,2473.1,0.40441]
[1728781415880,0.3845,2473.2,2472.8,0.421]
[1728781416286,0.3845,2473.2,2473.0,0.40441]
[1728781416896,1.57516818,2473.1,2473.0,0.40441]
[1728781420187,0.3845,2473.2,2473.0,0.40441]
[1728781420188,1.95966818,2473.2,2473.0,0.40441]
[1728781421197,1.57516818,2473.1,2473.0,0.40441]
[1728781421387,1.57516818,2473.1,2472.9,0.4147]
[1728781421583,1.57516818,2473.1,2472.8,0.421]
[1728781421584,6.02357818,2473.1,2472.8,0.82545]
[1728781421784,4.50957818,2473.1,2472.8,0.82545]
[1728781421994,1.57516818,2473.0,2472.8,0.82545]
[1728781422496,5.03463424,2473.1,2472.6,0.80408]
[1728781422497,2.37090818,2472.9,2472.6,0.80408]
[1728781422698,0.3983,2472.8,2472.7,0.40446]
[1728781423700,0.3983,2472.8,2472.6,0.80408]
[1728781423701,1.97346818,2472.8,2472.6,0.80408]
[1728781423998,0.3983,2472.8,2472.7,0.40447]
[1728781424215,0.3983,2472.8,2472.7,0.80167]
[1728781425693,0.3913,2472.9,2472.8,0.40446]
[1728781426405,0.3913,2472.9,2472.7,0.8139]
[1728781427003,0.3913,2472.9,2472.7,1.21837]
[1728781428718,0.3913,2472.9,2472.1,3.2078]
[1728781428719,10.1731,2472.9,2472.1,3.2078]
[1728781428929,2.53,2472.3,2472.1,3.2078]
[1728781429115,0.4084,2472.2,2472.1,3.2078]
[1728781429308,0.8298,2472.2,2472.1,3.61237]
[1728781430401,0.8298,2472.2,2472.1,3.2078]
[1728781430601,0.8298,2472.2,2472.1,3.61237]
[1728781431205,0.8298,2472.2,2472.1,0.40457]
[1728781432803,0.8298,2472.2,2472.0,3.2078]
[1728781433001,0.8298,2472.2,2472.0,4.02447]
[1728781433306,0.8298,2472.2,2472.0,3.6199]
[1728781433505,0.40457,2472.1,2472.0,0.4121]
[1728781435098,0.40459,2472.0,2471.9,0.4164]
[1728781435413,0.40459,2472.0,2471.6,0.8052]
[1728781435606,0.40459,2472.0,2471.6,1.20984]
[1728781435902,3.2078,2471.9,2471.6,0.8052]
[1728781436099,0.4167,2471.8,2471.6,0.8052]